[Event "Titled Tuesday Blitz September 27 Early 2022"]
[White "Hansen, Eric"]
[Black "Sychev, Klementy"]
[WhiteFideId "2606771"]
[BlackFideId "4114060"]
[WhiteElo "2568"]
[BlackElo "2564"]
[Result "1-0"]
[Round "06"]
[TimeControl "180+1"]
[Date "2022.09.27"]
[WhiteClock "0:00:02"]
[BlackClock "0:00:02"]

1. e4 {[%clk 0:03:00]}  c6 {[%clk 0:02:59]} 2. Nf3 {[%clk 0:02:59]}  d5 {[%clk 0:02:59]} 3. d3 {[%clk 0:03:00]}  dxe4 {[%clk 0:02:58]} 4. dxe4 {[%clk 0:03:00]}  Qxd1+ {[%clk 0:02:58]} 5. Kxd1 {[%clk 0:03:01]}  Nd7 {[%clk 0:02:58]} 6. a4 {[%clk 0:02:56]}  Ngf6 {[%clk 0:02:30]} 7. Nfd2 {[%clk 0:02:54]}  h5 {[%clk 0:02:17]} 8. h4 {[%clk 0:02:45]}  Ng4 {[%clk 0:02:16]} 9. Ke2 {[%clk 0:02:45]}  f5 {[%clk 0:02:10]} 10. f3 {[%clk 0:02:41]}  Ngf6 {[%clk 0:02:09]} 11. Nc3 {[%clk 0:02:36]}  e5 {[%clk 0:02:05]} 12. exf5 {[%clk 0:02:18]}  Nc5 {[%clk 0:02:04]} 13. Nc4 {[%clk 0:01:35]}  Bxf5 {[%clk 0:02:02]} 14. Ne3 {[%clk 0:01:04]}  Bg6 {[%clk 0:01:59]} 15. Kf2 {[%clk 0:01:01]}  Ne6 {[%clk 0:01:57]} 16. a5 {[%clk 0:01:00]}  O-O-O {[%clk 0:01:51]} 17. Nc4 {[%clk 0:00:50]}  Bc5+ {[%clk 0:01:45]} 18. Kg3 {[%clk 0:00:38]}  Bxc2 {[%clk 0:01:17]} 19. a6 {[%clk 0:00:32]}  b5 {[%clk 0:01:15]} 20. Na5 {[%clk 0:00:32]}  Kc7 {[%clk 0:01:10]} 21. Nb7 {[%clk 0:00:32]}  b4 {[%clk 0:00:45]} 22. Na4 {[%clk 0:00:26]}  Bd4 {[%clk 0:00:39]} 23. Nxd8 {[%clk 0:00:18]}  Rxd8 {[%clk 0:00:40]} 24. Bc4 {[%clk 0:00:19]}  Nf4 {[%clk 0:00:32]} 25. Re1 {[%clk 0:00:17]}  N6d5 {[%clk 0:00:14]} 26. Ra2 {[%clk 0:00:14]}  Rd6 {[%clk 0:00:11]} 27. Bf1 {[%clk 0:00:11]}  Rg6+ {[%clk 0:00:10]} 28. Kh2 {[%clk 0:00:11]}  Bb3 {[%clk 0:00:10]} 29. Ra1 {[%clk 0:00:10]}  Bf2 {[%clk 0:00:10]} 30. Rxe5 {[%clk 0:00:09]}  Bxh4 {[%clk 0:00:06]} 31. Nc5 {[%clk 0:00:08]}  Bg3+ {[%clk 0:00:06]} 32. Kh1 {[%clk 0:00:09]}  Bc2 {[%clk 0:00:05]} 33. Ne4 {[%clk 0:00:08]}  h4 {[%clk 0:00:04]} 34. Nxg3 {[%clk 0:00:04]}  hxg3 {[%clk 0:00:05]} 35. Kg1 {[%clk 0:00:04]}  Rf6 {[%clk 0:00:04]} 36. Rg5 {[%clk 0:00:04]}  Kb6 {[%clk 0:00:03]} 37. Rxg3 {[%clk 0:00:03]}  g6 {[%clk 0:00:03]} 38. Kf2 {[%clk 0:00:03]}  Re6 {[%clk 0:00:03]} 39. Rg5 {[%clk 0:00:03]}  Kc5 {[%clk 0:00:02]} 40. Rg4 {[%clk 0:00:02]} 1-0


[Site "https://www.chess.com"]

[Event "Titled Tuesday Blitz September 27 Early 2022"]
[White "Harsh Suresh"]
[Black "Martin Duque, Jesus"]
[WhiteFideId "45018464"]
[BlackFideId "2208954"]
[WhiteElo "2070"]
[BlackElo "2258"]
[Result "0-1"]
[Round "06"]
[TimeControl "180+1"]
[Date "2022.09.27"]
[WhiteClock "0:00:05"]
[BlackClock "0:00:51"]

1. Nf3 {[%clk 0:02:57]}  Nf6 {[%clk 0:02:59]} 2. g3 {[%clk 0:02:57]}  b6 {[%clk 0:02:58]} 3. b3 {[%clk 0:02:58]}  Bb7 {[%clk 0:02:59]} 4. Bg2 {[%clk 0:02:59]}  g6 {[%clk 0:03:00]} 5. Bb2 {[%clk 0:02:59]}  Bg7 {[%clk 0:03:00]} 6. O-O {[%clk 0:02:59]}  O-O {[%clk 0:03:00]} 7. c4 {[%clk 0:02:59]}  e6 {[%clk 0:03:01]} 8. d4 {[%clk 0:02:59]}  Qe7 {[%clk 0:03:00]} 9. Nc3 {[%clk 0:02:54]}  d5 {[%clk 0:03:00]} 10. cxd5 {[%clk 0:02:51]}  exd5 {[%clk 0:03:01]} 11. e3 {[%clk 0:02:49]}  Rd8 {[%clk 0:03:01]} 12. Rc1 {[%clk 0:02:50]}  Na6 {[%clk 0:03:01]} 13. a3 {[%clk 0:02:43]}  c5 {[%clk 0:03:01]} 14. Qe2 {[%clk 0:02:43]}  Ne4 {[%clk 0:02:57]} 15. Rfd1 {[%clk 0:02:41]}  Rac8 {[%clk 0:02:55]} 16. Nb5 {[%clk 0:02:32]}  Bc6 {[%clk 0:02:44]} 17. Ne5 {[%clk 0:02:31]}  Be8 {[%clk 0:02:43]} 18. f4 {[%clk 0:02:20]}  f6 {[%clk 0:02:34]} 19. Ng4 {[%clk 0:02:14]}  h5 {[%clk 0:02:32]} 20. Nf2 {[%clk 0:02:14]}  f5 {[%clk 0:02:31]} 21. Nxe4 {[%clk 0:02:01]}  dxe4 {[%clk 0:02:25]} 22. Bf1 {[%clk 0:01:51]}  cxd4 {[%clk 0:02:17]} 23. Nxd4 {[%clk 0:01:47]}  Nc5 {[%clk 0:02:17]} 24. a4 {[%clk 0:01:07]}  Bf7 {[%clk 0:02:13]} 25. Ba3 {[%clk 0:01:05]}  Qb7 {[%clk 0:02:08]} 26. Bxc5 {[%clk 0:00:50]}  bxc5 {[%clk 0:02:07]} 27. Nb5 {[%clk 0:00:51]}  Bxb3 {[%clk 0:01:58]} 28. Rxd8+ {[%clk 0:00:48]}  Rxd8 {[%clk 0:01:58]} 29. Rxc5 {[%clk 0:00:49]}  a6 {[%clk 0:01:53]} 30. Rc7 {[%clk 0:00:21]}  Qb6 {[%clk 0:01:53]} 31. Rxg7+ {[%clk 0:00:18]}  Kxg7 {[%clk 0:01:54]} 32. Qb2+ {[%clk 0:00:18]}  Kh7 {[%clk 0:01:46]} 33. Nd4 {[%clk 0:00:18]}  Rxd4 {[%clk 0:01:39]} 34. exd4 {[%clk 0:00:18]}  Qb4 {[%clk 0:01:34]} 35. d5 {[%clk 0:00:17]}  Qc5+ {[%clk 0:01:30]} 36. Kg2 {[%clk 0:00:18]}  Bxd5 {[%clk 0:01:30]} 37. Qf6 {[%clk 0:00:16]}  e3+ {[%clk 0:01:28]} 38. Kh3 {[%clk 0:00:16]}  Bf3 {[%clk 0:01:15]} 39. Kh4 {[%clk 0:00:16]}  e2 {[%clk 0:01:09]} 40. Bxe2 {[%clk 0:00:10]}  Bxe2 {[%clk 0:01:09]} 41. Kg5 {[%clk 0:00:11]}  Bc4 {[%clk 0:01:02]} 42. Qxg6+ {[%clk 0:00:09]}  Kh8 {[%clk 0:01:01]} 43. Qh6+ {[%clk 0:00:09]}  Kg8 {[%clk 0:01:00]} 44. Qg6+ {[%clk 0:00:09]}  Kf8 {[%clk 0:01:00]} 45. Qf6+ {[%clk 0:00:09]}  Bf7 {[%clk 0:00:57]} 46. Qd8+ {[%clk 0:00:08]}  Be8 {[%clk 0:00:57]} 47. Qf6+ {[%clk 0:00:09]}  Kg8 {[%clk 0:00:57]} 48. Qxf5 {[%clk 0:00:05]}  Qxf5+ {[%clk 0:00:56]} 49. Kxf5 {[%clk 0:00:06]}  Bxa4 {[%clk 0:00:56]} 50. h3 {[%clk 0:00:06]}  Bd7+ {[%clk 0:00:56]} 51. Kg5 {[%clk 0:00:05]}  a5 {[%clk 0:00:56]} 52. g4 {[%clk 0:00:04]}  a4 {[%clk 0:00:55]} 53. gxh5 {[%clk 0:00:04]}  a3 {[%clk 0:00:55]} 54. h6 {[%clk 0:00:05]}  a2 {[%clk 0:00:55]} 55. f5 {[%clk 0:00:06]}  a1=Q {[%clk 0:00:55]} 56. h4 {[%clk 0:00:07]}  Qb1 {[%clk 0:00:54]} 57. h7+ {[%clk 0:00:04]}  Kxh7 {[%clk 0:00:53]} 58. Kf6 {[%clk 0:00:04]}  Qxf5+ {[%clk 0:00:53]} 59. Ke7 {[%clk 0:00:05]}  Qe6+ {[%clk 0:00:53]} 60. Kf8 {[%clk 0:00:05]}  Qf6# {[%clk 0:00:51]} 0-1


[Site "https://www.chess.com"]

[Event "Titled Tuesday Blitz September 27 Early 2022"]
[White "Heinemann, Josefine"]
[Black "Barria Zuniga, Daniel"]
[WhiteFideId "12900460"]
[BlackFideId "3400816"]
[WhiteElo "2300"]
[BlackElo "2414"]
[Result "0-1"]
[Round "06"]
[TimeControl "180+1"]
[Date "2022.09.27"]
[WhiteClock "0:00:57"]
[BlackClock "0:02:04"]

1. Nf3 {[%clk 0:03:00]}  d5 {[%clk 0:02:55]} 2. g3 {[%clk 0:02:59]}  Nf6 {[%clk 0:02:53]} 3. Bg2 {[%clk 0:02:59]}  e6 {[%clk 0:02:54]} 4. O-O {[%clk 0:02:59]}  Be7 {[%clk 0:02:55]} 5. d4 {[%clk 0:02:59]}  O-O {[%clk 0:02:55]} 6. c4 {[%clk 0:02:59]}  dxc4 {[%clk 0:02:55]} 7. Qc2 {[%clk 0:02:59]}  a6 {[%clk 0:02:55]} 8. Qxc4 {[%clk 0:02:59]}  b5 {[%clk 0:02:55]} 9. Qc2 {[%clk 0:02:58]}  Bb7 {[%clk 0:02:56]} 10. Bg5 {[%clk 0:02:54]}  Nbd7 {[%clk 0:02:54]} 11. Ne5 {[%clk 0:02:32]}  Bxg2 {[%clk 0:02:49]} 12. Kxg2 {[%clk 0:02:26]}  Nxe5 {[%clk 0:02:49]} 13. dxe5 {[%clk 0:02:25]}  Qd5+ {[%clk 0:02:48]} 14. f3 {[%clk 0:02:19]}  Qxe5 {[%clk 0:02:47]} 15. Bf4 {[%clk 0:02:19]}  Nd5 {[%clk 0:02:43]} 16. Bd2 {[%clk 0:01:38]}  Rfd8 {[%clk 0:02:25]} 17. Nc3 {[%clk 0:01:33]}  c5 {[%clk 0:02:16]} 18. e4 {[%clk 0:01:28]}  Nb4 {[%clk 0:02:14]} 19. Qc1 {[%clk 0:01:24]}  Nd3 {[%clk 0:02:14]} 20. Qc2 {[%clk 0:01:19]}  c4 {[%clk 0:02:14]} 21. Be3 {[%clk 0:01:18]}  Rd7 {[%clk 0:02:12]} 22. Rfd1 {[%clk 0:01:17]}  Rad8 {[%clk 0:02:11]} 23. a3 {[%clk 0:01:12]}  Bc5 {[%clk 0:02:08]} 24. Bxc5 {[%clk 0:01:06]}  Qxc5 {[%clk 0:02:08]} 25. Rd2 {[%clk 0:00:57]}  Nf4+ {[%clk 0:02:04]} 0-1


[Site "https://www.chess.com"]

[Event "Titled Tuesday Blitz September 27 Early 2022"]
[White "Howell, David W L"]
[Black "Goltsev, Dmitry"]
[WhiteFideId "410608"]
[BlackFideId "24176710"]
[WhiteElo "2559"]
[BlackElo "2257"]
[Result "1/2-1/2"]
[Round "06"]
[TimeControl "180+1"]
[Date "2022.09.27"]
[WhiteClock "0:00:04"]
[BlackClock "0:00:14"]

1. Nc3 {[%clk 0:02:55]}  Nf6 {[%clk 0:02:54]} 2. d4 {[%clk 0:02:50]}  d5 {[%clk 0:02:55]} 3. Bf4 {[%clk 0:02:50]}  c6 {[%clk 0:02:54]} 4. e3 {[%clk 0:02:50]}  Nbd7 {[%clk 0:02:54]} 5. g4 {[%clk 0:02:39]}  h6 {[%clk 0:02:50]} 6. Bg2 {[%clk 0:02:35]}  e6 {[%clk 0:02:47]} 7. h4 {[%clk 0:02:24]}  Bb4 {[%clk 0:02:45]} 8. f3 {[%clk 0:02:14]}  Qe7 {[%clk 0:02:40]} 9. Bg3 {[%clk 0:02:09]}  e5 {[%clk 0:02:39]} 10. Ne2 {[%clk 0:01:57]}  exd4 {[%clk 0:02:38]} 11. exd4 {[%clk 0:01:55]}  Nb6 {[%clk 0:02:34]} 12. Qd3 {[%clk 0:01:27]}  Nc4 {[%clk 0:02:30]} 13. O-O-O {[%clk 0:01:26]}  Qe3+ {[%clk 0:02:24]} 14. Kb1 {[%clk 0:01:20]}  O-O {[%clk 0:02:23]} 15. b3 {[%clk 0:01:15]}  Qxd3 {[%clk 0:02:19]} 16. Rxd3 {[%clk 0:01:16]}  Na3+ {[%clk 0:02:10]} 17. Kb2 {[%clk 0:01:17]}  Re8 {[%clk 0:02:10]} 18. Bf2 {[%clk 0:01:03]}  b6 {[%clk 0:02:08]} 19. Ng3 {[%clk 0:01:00]}  a5 {[%clk 0:01:59]} 20. Re1 {[%clk 0:00:54]}  Rxe1 {[%clk 0:01:58]} 21. Bxe1 {[%clk 0:00:55]}  Ba6 {[%clk 0:01:54]} 22. Re3 {[%clk 0:00:52]}  Re8 {[%clk 0:01:54]} 23. Bf2 {[%clk 0:00:45]}  Nb5 {[%clk 0:01:43]} 24. Nxb5 {[%clk 0:00:41]}  Bxb5 {[%clk 0:01:44]} 25. a4 {[%clk 0:00:31]}  Ba6 {[%clk 0:01:42]} 26. Nh5 {[%clk 0:00:21]}  Re6 {[%clk 0:01:17]} 27. Nxf6+ {[%clk 0:00:20]}  gxf6 {[%clk 0:01:17]} 28. h5 {[%clk 0:00:11]}  Bd2 {[%clk 0:01:14]} 29. Rxe6 {[%clk 0:00:12]}  fxe6 {[%clk 0:01:15]} 30. c3 {[%clk 0:00:12]}  Bd3 {[%clk 0:01:14]} 31. Bg3 {[%clk 0:00:12]}  b5 {[%clk 0:01:01]} 32. Bc7 {[%clk 0:00:12]}  b4 {[%clk 0:01:01]} 33. cxb4 {[%clk 0:00:12]}  Bxb4 {[%clk 0:01:02]} 34. Bb6 {[%clk 0:00:04]}  e5 {[%clk 0:01:01]} 35. Bc5 {[%clk 0:00:04]}  Bxc5 {[%clk 0:00:55]} 36. dxc5 {[%clk 0:00:05]}  d4 {[%clk 0:00:54]} 37. b4 {[%clk 0:00:04]}  axb4 {[%clk 0:00:52]} 38. Kb3 {[%clk 0:00:05]}  Kf7 {[%clk 0:00:50]} 39. Kxb4 {[%clk 0:00:05]}  Ke6 {[%clk 0:00:50]} 40. Ka5 {[%clk 0:00:02]}  Kd5 {[%clk 0:00:46]} 41. Kb6 {[%clk 0:00:03]}  Be2 {[%clk 0:00:46]} 42. a5 {[%clk 0:00:03]}  d3 {[%clk 0:00:45]} 43. f4+ {[%clk 0:00:03]}  e4 {[%clk 0:00:45]} 44. g5 {[%clk 0:00:04]}  d2 {[%clk 0:00:42]} 45. gxf6 {[%clk 0:00:04]}  d1=Q {[%clk 0:00:42]} 46. f7 {[%clk 0:00:05]}  Qg1 {[%clk 0:00:30]} 47. Bxe4+ {[%clk 0:00:04]}  Kxe4 {[%clk 0:00:29]} 48. f8=Q {[%clk 0:00:05]}  Qb1+ {[%clk 0:00:24]} 49. Kc7 {[%clk 0:00:05]}  Qb5 {[%clk 0:00:23]} 50. Qxh6 {[%clk 0:00:05]}  Qxc5 {[%clk 0:00:19]} 51. Qxc6+ {[%clk 0:00:04]}  Qxc6+ {[%clk 0:00:13]} 52. Kxc6 {[%clk 0:00:05]}  Kxf4 {[%clk 0:00:13]} 53. h6 {[%clk 0:00:05]}  Bd3 {[%clk 0:00:14]} 54. a6 {[%clk 0:00:05]}  Kg5 {[%clk 0:00:14]} 55. a7 {[%clk 0:00:03]}  Kxh6 {[%clk 0:00:14]} 56. Kd5 {[%clk 0:00:03]}  Bf1 {[%clk 0:00:15]} 57. Kd4 {[%clk 0:00:03]}  Bg2 {[%clk 0:00:15]} 58. a8=Q {[%clk 0:00:04]}  Bxa8 {[%clk 0:00:14]} 1/2-1/2


[Site "https://www.chess.com"]

[Event "Titled Tuesday Blitz September 27 Early 2022"]
[White "Hristodoulou, Panagiotis"]
[Black "Gracia Alvarez, Gerardo Antonio"]
[WhiteFideId "4214340"]
[BlackFideId "5109124"]
[WhiteElo "2172"]
[BlackElo "2139"]
[Result "1/2-1/2"]
[Round "06"]
[TimeControl "180+1"]
[Date "2022.09.27"]
[WhiteClock "0:00:02"]
[BlackClock "0:00:08"]

1. e4 {[%clk 0:03:00]}  c5 {[%clk 0:02:59]} 2. Nf3 {[%clk 0:02:59]}  Nc6 {[%clk 0:02:59]} 3. d4 {[%clk 0:02:57]}  cxd4 {[%clk 0:03:00]} 4. Nxd4 {[%clk 0:02:58]}  Nf6 {[%clk 0:03:00]} 5. Nc3 {[%clk 0:02:57]}  e5 {[%clk 0:03:00]} 6. Ndb5 {[%clk 0:02:55]}  h6 {[%clk 0:02:59]} 7. Nd5 {[%clk 0:02:45]}  Nxd5 {[%clk 0:02:59]} 8. exd5 {[%clk 0:02:46]}  a6 {[%clk 0:03:00]} 9. dxc6 {[%clk 0:02:44]}  axb5 {[%clk 0:03:00]} 10. cxd7+ {[%clk 0:02:42]}  Bxd7 {[%clk 0:02:59]} 11. Be3 {[%clk 0:02:42]}  Bc6 {[%clk 0:02:54]} 12. Qxd8+ {[%clk 0:02:40]}  Rxd8 {[%clk 0:02:53]} 13. f3 {[%clk 0:02:39]}  f5 {[%clk 0:02:42]} 14. Bd3 {[%clk 0:02:38]}  g6 {[%clk 0:02:39]} 15. O-O {[%clk 0:02:35]}  Bg7 {[%clk 0:02:28]} 16. Bb6 {[%clk 0:02:28]}  Rd7 {[%clk 0:02:25]} 17. Rfe1 {[%clk 0:02:26]}  O-O {[%clk 0:02:15]} 18. Re2 {[%clk 0:02:24]}  Re8 {[%clk 0:01:28]} 19. Rae1 {[%clk 0:02:19]}  Rde7 {[%clk 0:01:26]} 20. Bc5 {[%clk 0:02:18]}  Re6 {[%clk 0:01:25]} 21. a4 {[%clk 0:02:13]}  e4 {[%clk 0:01:22]} 22. fxe4 {[%clk 0:02:09]}  fxe4 {[%clk 0:01:17]} 23. axb5 {[%clk 0:01:33]}  exd3 {[%clk 0:00:49]} 24. Rxe6 {[%clk 0:01:31]}  Rxe6 {[%clk 0:00:50]} 25. Rxe6 {[%clk 0:01:31]}  dxc2 {[%clk 0:00:50]} 26. Re1 {[%clk 0:01:17]}  Bxb5 {[%clk 0:00:27]} 27. b3 {[%clk 0:01:09]}  Bc3 {[%clk 0:00:19]} 28. Rc1 {[%clk 0:00:58]}  Bd3 {[%clk 0:00:20]} 29. Be3 {[%clk 0:00:51]}  h5 {[%clk 0:00:20]} 30. Kf2 {[%clk 0:00:48]}  Bb2 {[%clk 0:00:20]} 31. Rg1 {[%clk 0:00:44]}  Kf7 {[%clk 0:00:20]} 32. Kf3 {[%clk 0:00:32]}  Ke6 {[%clk 0:00:18]} 33. Bc1 {[%clk 0:00:28]}  Bc3 {[%clk 0:00:17]} 34. Ke3 {[%clk 0:00:27]}  Bf5 {[%clk 0:00:16]} 35. Bd2 {[%clk 0:00:23]}  Bb2 {[%clk 0:00:16]} 36. Bc1 {[%clk 0:00:19]}  Bc3 {[%clk 0:00:16]} 37. Bd2 {[%clk 0:00:18]}  Bb2 {[%clk 0:00:17]} 38. h3 {[%clk 0:00:13]}  h4 {[%clk 0:00:15]} 39. Bc1 {[%clk 0:00:10]}  Bc3 {[%clk 0:00:15]} 40. Kf4 {[%clk 0:00:10]}  Kd5 {[%clk 0:00:13]} 41. Kg5 {[%clk 0:00:04]}  Kc5 {[%clk 0:00:13]} 42. Kxh4 {[%clk 0:00:02]}  Kb4 {[%clk 0:00:13]} 43. Kg5 {[%clk 0:00:02]}  Kxb3 {[%clk 0:00:13]} 44. Kf4 {[%clk 0:00:03]}  b5 {[%clk 0:00:12]} 45. Ke3 {[%clk 0:00:03]}  b4 {[%clk 0:00:11]} 46. g4 {[%clk 0:00:04]}  Be6 {[%clk 0:00:10]} 47. h4 {[%clk 0:00:04]}  Kc4 {[%clk 0:00:10]} 48. Ke2 {[%clk 0:00:03]}  b3 {[%clk 0:00:10]} 49. h5 {[%clk 0:00:03]}  gxh5 {[%clk 0:00:10]} 50. gxh5 {[%clk 0:00:02]}  b2 {[%clk 0:00:10]} 51. Bxb2 {[%clk 0:00:02]}  Bxb2 {[%clk 0:00:11]} 52. Kd2 {[%clk 0:00:03]}  Bf5 {[%clk 0:00:07]} 53. h6 {[%clk 0:00:03]}  c1=Q+ {[%clk 0:00:07]} 54. Rxc1+ {[%clk 0:00:02]}  Bxc1+ {[%clk 0:00:07]} 55. Kxc1 {[%clk 0:00:03]}  Kd5 {[%clk 0:00:08]} 56. h7 {[%clk 0:00:02]}  Bxh7 {[%clk 0:00:08]} 1/2-1/2


[Site "https://www.chess.com"]

[Event "Titled Tuesday Blitz September 27 Early 2022"]
[White "Ilkhomi, Jaloliddin"]
[Black "Ovchinnikov, Vsevolod"]
[WhiteFideId "14700948"]
[BlackFideId "24176842"]
[WhiteElo "1440"]
[BlackElo "2376"]
[Result "1-0"]
[Round "06"]
[TimeControl "180+1"]
[Date "2022.09.27"]
[WhiteClock "0:00:13"]
[BlackClock "0:00:07"]

1. d4 {[%clk 0:03:00]}  Nf6 {[%clk 0:02:58]} 2. Bf4 {[%clk 0:02:59]}  g6 {[%clk 0:02:58]} 3. Nf3 {[%clk 0:02:59]}  Bg7 {[%clk 0:02:58]} 4. e3 {[%clk 0:02:59]}  d6 {[%clk 0:02:59]} 5. Be2 {[%clk 0:02:59]}  Nfd7 {[%clk 0:02:59]} 6. O-O {[%clk 0:02:59]}  O-O {[%clk 0:02:59]} 7. h3 {[%clk 0:02:59]}  e5 {[%clk 0:03:00]} 8. Bh2 {[%clk 0:03:00]}  Nc6 {[%clk 0:02:59]} 9. c3 {[%clk 0:02:59]}  h6 {[%clk 0:03:00]} 10. Nbd2 {[%clk 0:02:59]}  f5 {[%clk 0:03:00]} 11. Qb3+ {[%clk 0:02:59]}  Kh8 {[%clk 0:02:58]} 12. dxe5 {[%clk 0:02:59]}  dxe5 {[%clk 0:02:57]} 13. Rfd1 {[%clk 0:03:00]}  Qe7 {[%clk 0:02:53]} 14. Nc4 {[%clk 0:03:00]}  a6 {[%clk 0:02:21]} 15. a4 {[%clk 0:02:58]}  b6 {[%clk 0:02:21]} 16. Rd2 {[%clk 0:02:54]}  Bb7 {[%clk 0:02:19]} 17. Rad1 {[%clk 0:02:54]}  Nc5 {[%clk 0:02:19]} 18. Qa3 {[%clk 0:02:55]}  b5 {[%clk 0:01:21]} 19. b4 {[%clk 0:01:27]}  bxc4 {[%clk 0:01:21]} 20. bxc5 {[%clk 0:01:27]}  Rad8 {[%clk 0:01:22]} 21. Qb2 {[%clk 0:01:18]}  Rxd2 {[%clk 0:01:15]} 22. Rxd2 {[%clk 0:01:19]}  Bc8 {[%clk 0:01:12]} 23. Bxc4 {[%clk 0:01:18]}  Qxc5 {[%clk 0:01:11]} 24. Ba2 {[%clk 0:01:04]}  f4 {[%clk 0:01:02]} 25. Rd5 {[%clk 0:00:57]}  Qe7 {[%clk 0:01:01]} 26. exf4 {[%clk 0:00:45]}  exf4 {[%clk 0:00:58]} 27. Rd1 {[%clk 0:00:46]}  g5 {[%clk 0:00:52]} 28. Bb1 {[%clk 0:00:44]}  Qc5 {[%clk 0:00:44]} 29. Nd4 {[%clk 0:00:21]}  Nxd4 {[%clk 0:00:38]} 30. cxd4 {[%clk 0:00:22]}  Qd5 {[%clk 0:00:37]} 31. f3 {[%clk 0:00:22]}  c5 {[%clk 0:00:28]} 32. Qc2 {[%clk 0:00:18]}  Bxd4+ {[%clk 0:00:25]} 33. Kh1 {[%clk 0:00:14]}  Bf5 {[%clk 0:00:25]} 34. Qc1 {[%clk 0:00:11]}  Bxb1 {[%clk 0:00:25]} 35. Qxb1 {[%clk 0:00:12]}  Qe6 {[%clk 0:00:19]} 36. Bg1 {[%clk 0:00:12]}  Bxg1 {[%clk 0:00:18]} 37. Kxg1 {[%clk 0:00:13]}  Re8 {[%clk 0:00:17]} 38. Kh2 {[%clk 0:00:12]}  Re7 {[%clk 0:00:14]} 39. Rd8+ {[%clk 0:00:12]}  Kg7 {[%clk 0:00:15]} 40. Rb8 {[%clk 0:00:11]}  h5 {[%clk 0:00:14]} 41. Rb6 {[%clk 0:00:11]}  Qf7 {[%clk 0:00:12]} 42. Qb2+ {[%clk 0:00:11]}  Kh7 {[%clk 0:00:11]} 43. Rb8 {[%clk 0:00:12]}  Qg7 {[%clk 0:00:10]} 44. Qc2+ {[%clk 0:00:11]}  Qg6 {[%clk 0:00:02]} 45. Rh8+ {[%clk 0:00:11]}  Kg7 {[%clk 0:00:02]} 46. Rg8+ {[%clk 0:00:11]}  Kxg8 {[%clk 0:00:03]} 47. Qxg6+ {[%clk 0:00:11]}  Rg7 {[%clk 0:00:04]} 48. Qe8+ {[%clk 0:00:12]}  Kh7 {[%clk 0:00:04]} 49. Qxh5+ {[%clk 0:00:12]}  Kg8 {[%clk 0:00:04]} 50. Qe8+ {[%clk 0:00:13]}  Kh7 {[%clk 0:00:05]} 51. Qe4+ {[%clk 0:00:14]}  Kh6 {[%clk 0:00:06]} 52. Qc6+ {[%clk 0:00:14]}  Rg6 {[%clk 0:00:06]} 53. Qxc5 {[%clk 0:00:14]}  Kh5 {[%clk 0:00:07]} 54. Qc8 {[%clk 0:00:13]}  Kh6 {[%clk 0:00:07]} 55. Qh8# {[%clk 0:00:13]} 1-0


[Site "https://www.chess.com"]

[Event "Titled Tuesday Blitz September 27 Early 2022"]
[White "Itkis, Boris"]
[Black "Machidon, Cristi"]
[WhiteFideId "1209167"]
[BlackFideId "13904590"]
[WhiteElo "2207"]
[BlackElo "2312"]
[Result "0-1"]
[Round "06"]
[TimeControl "180+1"]
[Date "2022.09.27"]
[WhiteClock "0:00:07"]
[BlackClock "0:00:17"]

1. c4 {[%clk 0:03:00]}  c6 {[%clk 0:02:58]} 2. Nf3 {[%clk 0:02:59]}  d5 {[%clk 0:02:59]} 3. g3 {[%clk 0:02:58]}  Nf6 {[%clk 0:03:00]} 4. Bg2 {[%clk 0:02:58]}  g6 {[%clk 0:02:54]} 5. b3 {[%clk 0:02:58]}  Bg7 {[%clk 0:02:54]} 6. Bb2 {[%clk 0:02:59]}  O-O {[%clk 0:02:55]} 7. O-O {[%clk 0:02:59]}  a5 {[%clk 0:02:56]} 8. Nc3 {[%clk 0:02:57]}  Ne4 {[%clk 0:02:52]} 9. Qc2 {[%clk 0:02:48]}  Nxc3 {[%clk 0:02:51]} 10. Bxc3 {[%clk 0:02:48]}  d4 {[%clk 0:02:52]} 11. Bb2 {[%clk 0:02:45]}  e5 {[%clk 0:02:52]} 12. d3 {[%clk 0:02:44]}  Na6 {[%clk 0:02:48]} 13. a3 {[%clk 0:02:42]}  Be6 {[%clk 0:02:16]} 14. h4 {[%clk 0:02:33]}  h6 {[%clk 0:02:16]} 15. Nd2 {[%clk 0:02:27]}  f5 {[%clk 0:02:11]} 16. Rab1 {[%clk 0:02:12]}  Kh7 {[%clk 0:02:01]} 17. Bc1 {[%clk 0:02:10]}  Qe7 {[%clk 0:02:01]} 18. Qb2 {[%clk 0:01:59]}  Nc5 {[%clk 0:01:59]} 19. Qc2 {[%clk 0:01:49]}  Qc7 {[%clk 0:00:58]} 20. Bb2 {[%clk 0:01:03]}  e4 {[%clk 0:00:51]} 21. dxe4 {[%clk 0:00:51]}  f4 {[%clk 0:00:51]} 22. b4 {[%clk 0:00:49]}  axb4 {[%clk 0:00:48]} 23. axb4 {[%clk 0:00:48]}  Na4 {[%clk 0:00:49]} 24. Ba1 {[%clk 0:00:20]}  fxg3 {[%clk 0:00:42]} 25. Qd3 {[%clk 0:00:20]}  Nc3 {[%clk 0:00:38]} 26. Rb3 {[%clk 0:00:16]}  gxf2+ {[%clk 0:00:35]} 27. Kh1 {[%clk 0:00:16]}  Qf4 {[%clk 0:00:27]} 28. Nf3 {[%clk 0:00:12]}  b5 {[%clk 0:00:17]} 29. Nxd4 {[%clk 0:00:07]}  Qxh4+ {[%clk 0:00:17]} 0-1


[Site "https://www.chess.com"]

[Event "Titled Tuesday Blitz September 27 Early 2022"]
[White "Jakubowski, Krzysztof"]
[Black "Fawzy, Adham"]
[WhiteFideId "1112848"]
[BlackFideId "10613129"]
[WhiteElo "2306"]
[BlackElo "2541"]
[Result "1-0"]
[Round "06"]
[TimeControl "180+1"]
[Date "2022.09.27"]
[WhiteClock "0:01:34"]
[BlackClock "0:00:10"]

1. e4 {[%clk 0:03:00]}  c5 {[%clk 0:03:00]} 2. Nf3 {[%clk 0:02:58]}  d6 {[%clk 0:03:00]} 3. d4 {[%clk 0:02:58]}  cxd4 {[%clk 0:03:01]} 4. Nxd4 {[%clk 0:02:58]}  Nf6 {[%clk 0:03:02]} 5. Nc3 {[%clk 0:02:58]}  a6 {[%clk 0:03:02]} 6. g3 {[%clk 0:02:54]}  g6 {[%clk 0:02:50]} 7. Bg2 {[%clk 0:02:51]}  Bg7 {[%clk 0:02:50]} 8. O-O {[%clk 0:02:50]}  O-O {[%clk 0:02:51]} 9. Re1 {[%clk 0:02:49]}  Qc7 {[%clk 0:02:40]} 10. Nd5 {[%clk 0:02:42]}  Nxd5 {[%clk 0:02:36]} 11. exd5 {[%clk 0:02:43]}  b5 {[%clk 0:02:31]} 12. Bg5 {[%clk 0:02:41]}  Re8 {[%clk 0:02:17]} 13. c3 {[%clk 0:02:33]}  h6 {[%clk 0:02:13]} 14. Bf4 {[%clk 0:02:28]}  Nd7 {[%clk 0:02:08]} 15. Qd2 {[%clk 0:02:25]}  g5 {[%clk 0:01:56]} 16. Be3 {[%clk 0:02:25]}  Ne5 {[%clk 0:01:53]} 17. b3 {[%clk 0:02:25]}  Bb7 {[%clk 0:01:43]} 18. Rac1 {[%clk 0:02:21]}  Rac8 {[%clk 0:01:41]} 19. h3 {[%clk 0:02:21]}  Qb8 {[%clk 0:01:12]} 20. f4 {[%clk 0:02:16]}  gxf4 {[%clk 0:00:52]} 21. gxf4 {[%clk 0:02:15]}  Nd7 {[%clk 0:00:43]} 22. Kh2 {[%clk 0:02:14]}  Kh8 {[%clk 0:00:34]} 23. Nf5 {[%clk 0:02:13]}  Nf6 {[%clk 0:00:17]} 24. Rg1 {[%clk 0:02:06]}  Qc7 {[%clk 0:00:15]} 25. Qf2 {[%clk 0:01:48]}  Rg8 {[%clk 0:00:14]} 26. Qh4 {[%clk 0:01:48]}  Kh7 {[%clk 0:00:14]} 27. Bd4 {[%clk 0:01:42]}  Qd7 {[%clk 0:00:10]} 28. Be4 {[%clk 0:01:35]}  Nxe4 {[%clk 0:00:10]} 29. Rxg7+ {[%clk 0:01:34]} 1-0


[Site "https://www.chess.com"]